bitfinex/quotes_ETHUSD_20240823
["timestamp","ask_amount","ask_price","bid_price","bid_amount"]
[1724379164788,2.434,2645.4,2645.2,8.316738]
[1724379165436,2.434,2645.4,2645.2,8.316758]
[1724379166466,2.434,2645.4,2645.3,3.78028]
[1724379168090,2.434,2645.4,2645.2,7.56065]
[1724379168415,2.434,2645.4,2645.3,3.78028]
[1724379170384,2.434,2645.4,2645.2,3.78032]
[1724379170896,2.434,2645.4,2645.2,7.56066]
[1724379171105,2.434,2645.4,2645.3,3.78028]
[1724379175881,2.434,2645.4,2645.2,7.56078]
[1724379176068,2.434,2645.4,2645.2,3.78035]
[1724379176265,2.434,2645.4,2645.2,7.5607]
[1724379176506,2.434,2645.4,2645.2,3.78035]
[1724379176710,2.4422,2645.7,2645.3,3.78028]
[1724379184727,3.56822495,2645.7,2645.2,3.78042]
[1724379185028,2.4169,2645.6,2645.2,3.78042]
[1724379185989,1.12602495,2645.5,2645.0,3.7806]
[1724379186326,2.4169,2645.8,2645.2,3.78028]
[1724379187440,2.4169,2645.8,2645.3,3.78028]
[1724379189420,2.7711925,2645.8,2645.1,3.78044]
[1724379189620,2.7711925,2645.8,2645.2,3.78039]
[1724379190757,2.7711925,2645.8,2645.3,3.78024]
[1724379191666,2.7711925,2645.8,2645.2,3.78039]
[1724379191959,2.7711925,2645.8,2645.2,7.5607]
[1724379192157,2.4169,2645.8,2645.2,7.56067]
[1724379192923,2.4169,2645.8,2645.2,3.78031]
[1724379194855,2.4169,2645.8,2645.2,7.56067]
[1724379195251,2.4169,2645.8,2645.2,3.78031]
[1724379195456,2.4847,2645.6,2645.2,3.78031]
[1724379206074,2.4847,2645.6,2645.2,7.56064]
[1724379206321,2.4847,2645.6,2645.2,3.78031]
[1724379209928,2.4847,2645.6,2645.2,7.56065]
[1724379210159,2.4847,2645.6,2645.2,3.78031]
[1724379211031,2.4847,2645.6,2645.3,3.78028]
[1724379215184,2.4847,2645.6,2645.2,3.78031]
[1724379215392,2.4847,2645.6,2645.2,7.56066]
[1724379215858,2.4847,2645.6,2645.2,3.78031]
[1724379221254,2.4847,2645.6,2645.3,3.78026]
[1724379222791,2.4847,2645.6,2645.2,3.78031]
[1724379223092,2.4847,2645.6,2645.2,7.56067]
[1724379223292,2.4847,2645.6,2645.3,3.78027]
[1724379224456,2.4847,2645.6,2645.3,3.78025]
[1724379239226,2.4847,2645.6,2645.1,3.78045]
[1724379239461,2.4847,2645.6,2645.2,3.78035]
[1724379240194,2.4847,2645.6,2645.2,3.77938394]
[1724379241504,2.4847,2645.6,2645.3,3.78028]
[1724379243204,2.4847,2645.6,2645.2,3.78042]
[1724379243706,2.2882,2645.2,2644.3,8.1514079]
[1724379243860,2.2882,2644.7,2644.1,3.7819]
[1724379244574,2.2882,2644.7,2644.1,7.56383]
[1724379244773,2.2882,2644.7,2644.1,8.4328155]
[1724379245189,2.2882,2644.7,2644.2,3.78182]
[1724379246609,2.2882,2644.7,2644.3,3.78168]
[1724379248133,2.2882,2644.7,2644.2,3.78186]
[1724379249848,2.2882,2644.7,2644.1,7.56381]
[1724379250894,2.2607,2644.6,2644.2,3.78186]
[1724379252971,2.2607,2644.6,2644.1,3.7819]
[1724379254727,2.2607,2644.6,2644.0,3.78214]
[1724379254864,2.59937249,2644.6,2644.0,3.78214]
[1724379256896,1.12602495,2644.5,2643.7,3.78251]
[1724379257041,2.3392,2644.5,2643.7,3.78251]
[1724379257372,2.3392,2644.0,2643.5,7.56555]
[1724379260561,2.3392,2644.0,2643.6,3.7827]
[1724379261456,2.3392,2644.0,2643.5,3.78276]
[1724379261667,2.3392,2644.0,2643.6,3.78269]
[1724379265692,2.3392,2644.0,2643.7,3.78254]
[1724379270883,2.3392,2644.0,2643.7,3.7825]
[1724379271053,2.3392,2644.0,2643.7,4.6516315]
[1724379271764,2.3392,2644.0,2643.7,3.7825]
[1724379276573,2.3392,2644.0,2643.8,3.7824]
[1724379277126,2.3392,2644.0,2643.8,4.90836495]
[1724379277425,2.3392,2644.0,2643.9,7.56458]
[1724379277588,2.3346,2644.5,2643.9,3.78229]
[1724379277933,4.12602495,2644.6,2643.9,3.78229]
[1724379277934,2.3346,2644.3,2643.9,3.78229]
[1724379280492,2.3346,2644.3,2643.8,4.90843495]
[1724379280699,2.3346,2644.3,2643.8,4.90836495]
[1724379281553,2.3346,2644.3,2643.9,3.78227]
[1724379282206,2.3346,2644.3,2644.0,3.78213]
[1724379282606,2.3346,2644.3,2643.9,3.78228]
[1724379285064,2.3346,2644.3,2643.9,4.65134449]
[1724379285483,2.3346,2644.3,2643.9,0.86906449]
[1724379286013,2.3346,2644.3,2643.9,4.65134449]
[1724379288816,2.3346,2644.3,2644.1,3.782]
[1724379289011,2.3346,2644.3,2644.2,3.78186]
[1724379289205,2.3346,2644.3,2644.1,3.782]
[1724379289414,2.3346,2644.3,2644.1,3.78193]
[1724379289583,2.3346,2644.3,2644.1,3.782]
[1724379289783,2.3346,2644.3,2644.2,0.49080249]
[1724379291888,2.3346,2644.3,2644.1,3.78189]
[1724379300327,2.3346,2644.3,2643.9,3.78216]
[1724379302131,2.3346,2644.3,2643.9,7.56436]
[1724379302824,2.3346,2644.3,2643.9,3.78216]
[1724379303131,2.3346,2644.3,2643.9,7.56437]
[1724379303295,2.3346,2644.3,2644.0,3.78212]
[1724379303902,2.3346,2644.3,2644.1,3.78199]
[1724379304095,2.3346,2644.3,2644.2,3.78186]
[1724379304816,2.3346,2644.3,2644.0,3.78213]
[1724379304997,2.3346,2644.3,2644.0,7.56421]
[1724379305288,2.3346,2644.3,2644.1,3.78199]
[1724379306700,2.3346,2644.3,2643.9,3.78224]
[1724379307023,2.56806,2644.3,2643.9,3.78224]
[1724379310384,2.56806,2644.3,2643.7,3.78247]
[1724379310847,2.56806,2644.3,2643.5,16.05161495]
[1724379311020,2.56806,2644.3,2643.5,12.26879495]
[1724379311525,2.56806,2644.3,2643.5,16.05158495]
[1724379311828,2.2717,2644.1,2643.5,16.05156495]
[1724379312124,2.2717,2644.1,2643.6,3.7827]
[1724379312500,2.2717,2644.1,2643.7,3.78257]
[1724379312908,2.2717,2644.1,2643.9,3.78228]
[1724379313731,2.2717,2644.1,2643.9,7.56449]
[1724379313924,2.2717,2644.1,2643.9,3.78221]
[1724379319226,2.2717,2644.1,2643.8,3.78242]
[1724379325745,2.2717,2644.1,2643.7,3.78249]
[1724379327359,2.2717,2644.1,2643.7,7.56498]
[1724379327563,2.2717,2644.1,2643.7,9.17008049]
[1724379327746,2.2717,2644.1,2643.7,5.38759049]
[1724379327948,2.2717,2644.1,2643.7,3.78249]
[1724379328380,2.2717,2644.1,2643.7,7.56498]
[1724379328770,2.2717,2644.1,2643.7,3.78249]
[1724379331248,2.2717,2644.1,2643.8,3.78241]
[1724379331650,2.2717,2644.1,2643.9,0.05656756]
[1724379335668,2.2717,2644.1,2643.7,3.78254]
[1724379335866,2.2717,2644.1,2644.0,0.05604426]
[1724379336351,2.2717,2644.1,2643.7,3.78254]
[1724379336683,2.2717,2644.1,2643.8,0.05604426]
[1724379336983,2.2717,2644.1,2643.5,11.14283]
[1724379337185,2.2717,2644.1,2643.6,0.05604426]
[1724379339591,2.2717,2644.1,2643.6,3.83873426]
[1724379339788,1.12602495,2644.0,2643.6,0.05604426]
[1724379339990,2.3458,2643.9,2643.6,0.05604426]
[1724379340355,2.3458,2643.7,2643.6,0.05604426]
[1724379340795,2.3458,2643.7,2643.1,3.78334]
[1724379340956,2.6929825,2643.7,2643.2,0.05417612]
[1724379341597,2.6929825,2643.7,2643.0,3.78354]
[1724379341766,2.6929825,2643.7,2642.9,4.90965495]
[1724379341767,2.6929825,2643.7,2643.1,0.05417612]
[1724379341966,2.3458,2643.5,2642.9,8.69328495]
[1724379342192,2.3458,2643.5,2643.0,0.05417612]
[1724379342579,2.3458,2643.5,2643.0,3.83769612]
[1724379342906,2.3458,2643.5,2643.0,0.05417612]
[1724379343073,1.12602495,2643.4,2643.0,0.05417612]
[1724379343274,2.4978,2643.2,2643.0,0.05417612]
[1724379343458,2.4978,2643.2,2642.8,3.78386]
[1724379343663,2.4978,2643.2,2643.1,0.05465056]
[1724379343876,2.4978,2643.2,2642.8,3.78386]
[1724379344080,2.4978,2643.2,2643.1,0.05465056]
[1724379344367,2.8601825,2643.2,2643.1,0.05465056]
[1724379344567,2.8601825,2643.2,2642.8,3.78386]
[1724379344799,2.4978,2643.2,2642.9,0.05465056]
[1724379346762,2.4978,2643.2,2643.0,3.7835]
[1724379347003,2.4978,2643.2,2643.1,0.0552227]
[1724379351006,2.4978,2643.2,2642.9,3.78371]
[1724379351168,2.4978,2643.2,2643.0,0.0552227]
[1724379353911,2.4978,2643.2,2643.0,3.8387727]
[1724379354206,2.4978,2643.2,2643.1,0.38387727]
[1724379354408,2.4978,2643.2,2643.1,0.0552576]
[1724379355613,2.4978,2643.2,2642.9,1.12602495]
[1724379355817,2.4978,2643.2,2643.1,0.0552576]
[1724379356108,2.4978,2643.2,2642.9,4.90972495]
[1724379356319,2.4978,2643.2,2643.1,0.0552576]
[1724379356482,2.4978,2643.2,2642.9,3.7837]
[1724379356898,2.4978,2643.2,2643.0,0.0552576]
[1724379357823,2.4978,2643.2,2642.8,3.78385]
[1724379358225,2.4978,2643.2,2642.9,0.05517385]
[1724379361606,2.4978,2643.2,2643.0,0.05333472]
[1724379361801,2.74758,2643.2,2642.8,3.78379]
[1724379362006,2.4978,2643.2,2642.9,0.05333472]
[1724379368224,2.4978,2643.2,2643.1,3.78343]
[1724379368484,1.12602495,2644.0,2643.1,4.33343]
[1724379368599,2.4519,2643.9,2643.3,3.7831]
[1724379368824,2.8096925,2643.9,2643.3,3.7831]
[1724379369037,2.8096925,2643.9,2643.4,0.05337661]
[1724379369334,2.4519,2643.9,2643.6,3.78263]
[1724379369554,2.4519,2643.9,2643.5,4.33279]
[1724379369839,2.4519,2643.9,2643.6,0.05337661]
[1724379375036,2.4519,2643.9,2643.6,3.83606661]
[1724379375181,2.4519,2643.9,2643.7,3.78257]
[1724379375393,2.3452,2644.3,2643.9,3.78225]
[1724379375549,2.3452,2644.3,2644.0,0.05302771]
[1724379376970,2.3452,2644.3,2643.8,4.33243]
[1724379377181,2.3452,2644.3,2643.9,0.05302771]
[1724379377492,2.3064,2644.1,2643.9,0.05302771]
[1724379380691,2.3064,2644.1,2643.7,3.78257]
[1724379380856,2.3064,2644.1,2644.0,0.0490111]
[1724379381040,2.3064,2644.1,2643.7,3.78257]
[1724379381259,2.3064,2644.1,2644.0,0.04737739]
[1724379381487,2.3064,2644.1,2643.8,0.55]
[1724379381488,2.6496425,2644.1,2643.8,0.55]
[1724379381671,2.3064,2644.1,2644.0,0.04737739]
[1724379381858,2.3064,2644.1,2643.8,0.55]
[1724379382053,2.3064,2644.1,2644.0,0.04737739]
[1724379382290,2.3064,2644.1,2643.8,0.55]
[1724379382485,2.3064,2644.1,2644.0,0.04737739]
[1724379382700,2.3064,2644.1,2643.8,4.33242]
[1724379382888,2.3064,2644.1,2644.0,0.04737739]
[1724379383397,2.3064,2644.1,2643.8,4.33242]
[1724379383557,2.3064,2644.1,2643.9,0.04737739]
[1724379392003,2.3064,2644.1,2644.0,4.33214]
[1724379392308,2.3064,2644.1,2644.0,4.37214142]
[1724379392514,2.4255,2644.3,2644.1,3.78197]
[1724379392813,2.4255,2644.3,2644.1,3.78191]
[1724379393118,2.4255,2644.3,2644.2,0.03866804]
[1724379394580,2.4255,2644.3,2644.2,0.58866804]
[1724379396483,2.4255,2644.3,2644.2,0.03866804]
[1724379404311,2.4255,2644.3,2644.1,0.55]
[1724379415814,2.388,2644.9,2644.3,3.78171]
[1724379416066,2.388,2644.9,2644.5,3.78142]
[1724379416431,2.388,2644.9,2644.6,0.55]
[1724379416973,2.388,2644.9,2644.5,0.55]
[1724379417666,2.4408,2644.8,2644.5,0.55]
[1724379423890,2.4408,2644.8,2644.5,0.58625394]
[1724379427715,2.4408,2644.8,2644.5,4.36764394]
[1724379430714,2.4408,2644.8,2644.5,5.16473569]
[1724379433525,2.3408,2644.8,2644.5,5.16473569]
[1724379435288,2.3408,2644.8,2644.6,3.78127]
[1724379440193,2.3408,2644.8,2644.7,3.78114]
[1724379440394,2.3408,2644.8,2644.7,4.33114]
[1724379440594,2.3408,2644.8,2644.7,5.22571557]
[1724379443600,2.4601,2645.2,2644.7,5.22571557]
[1724379443932,2.4601,2645.2,2644.8,4.33099]
[1724379444244,2.4601,2645.2,2644.8,8.11198]
[1724379444540,2.4601,2645.2,2644.8,5.23164556]
[1724379444709,2.4601,2645.2,2644.8,9.01253556]
[1724379444925,2.4601,2645.2,2644.8,4.33089]
[1724379448135,2.4601,2645.2,2644.8,0.55]
[1724379448715,1.12602495,2645.1,2644.8,0.55]
[1724379448906,2.4531,2645.0,2644.8,0.55]
[1724379449148,2.4531,2645.0,2644.8,4.33098]
[1724379449447,2.4531,2645.0,2644.8,0.55]
[1724379450035,2.4531,2645.0,2644.8,4.33096]
[1724379450217,2.4531,2645.0,2644.8,4.33093]
[1724379450410,2.4531,2645.0,2644.8,4.3309]
[1724379450851,2.4531,2645.0,2644.9,3.78086]
[1724379451024,2.4531,2645.0,2644.8,4.3309]
[1724379451641,2.4531,2645.0,2644.8,4.33089]
[1724379452026,2.4531,2645.0,2644.8,8.1118]
[1724379452627,2.4531,2645.0,2644.8,4.33089]
[1724379452828,2.4531,2645.0,2644.8,8.11181]
[1724379453227,2.4531,2645.0,2644.9,3.78086]
[1724379453435,2.2938,2645.2,2645.0,3.7807]
[1724379455237,2.2938,2645.2,2644.9,1.361175]
[1724379455443,2.2938,2645.2,2644.9,5.142005]
[1724379456377,2.2938,2645.2,2644.9,4.33083]
[1724379458640,2.2938,2645.2,2644.9,0.55]
[1724379458853,2.2948,2645.0,2644.9,0.55]
[1724379460659,2.2948,2645.0,2644.9,4.33086]
[1724379461368,2.2948,2645.0,2644.9,0.55]
[1724379483207,2.2948,2645.0,2644.8,0.55]
[1724379484576,2.2948,2645.0,2644.8,4.85490534]
[1724379485788,2.2948,2645.0,2644.8,0.55]
[1724379486001,2.2948,2645.0,2644.7,0.55]
[1724379488297,2.287,2644.9,2644.7,0.55]
[1724379489795,2.287,2644.9,2644.7,4.33107]
[1724379495750,2.287,2644.9,2644.7,0.55]
[1724379498262,2.4731,2644.7,2644.5,0.03625394]
[1724379498566,2.4731,2644.7,2644.5,0.58625394]
[1724379499233,2.4731,2644.7,2644.5,5.54037533]
[1724379499435,2.2951,2645.0,2644.6,3.78129]
[1724379499812,2.2951,2645.0,2644.7,4.33106]
[1724379500146,2.2951,2645.0,2644.7,5.26320153]
[1724379501516,2.2951,2645.0,2644.8,3.78098]
[1724379501711,2.2951,2645.0,2644.8,3.781]
[1724379502232,2.2951,2645.0,2644.7,5.26320153]
[1724379504479,2.2951,2645.0,2644.7,9.04427153]
[1724379504789,2.2951,2645.0,2644.8,0.90442715]
[1724379507745,2.2951,2645.0,2644.8,4.68542715]
[1724379509801,1.52,2645.3,2644.9,3.78086]
[1724379509940,2.4704,2645.2,2645.0,3.78068]
[1724379510462,2.4704,2645.2,2645.0,4.59939998]
[1724379513008,2.4704,2645.2,2645.0,0.81871998]
[1724379513170,2.4704,2645.2,2644.9,4.33086]
[1724379514671,2.4704,2645.2,2644.9,0.55]
[1724379514897,2.4704,2645.2,2644.8,4.33097]
[1724379530735,2.4704,2645.2,2644.8,8.11194]
[1724379530939,2.4704,2645.2,2644.8,4.33097]
[1724379531238,2.4704,2645.2,2644.9,0.433097]
[1724379531386,2.4704,2645.2,2645.0,0.55]
[1724379531805,2.4704,2645.2,2644.9,0.55]
[1724379535547,3.59642495,2645.2,2644.9,0.55]
[1724379535739,2.4107,2645.1,2644.9,0.55]
[1724379536849,2.4107,2645.1,2644.6,3.78118]
[1724379537042,1.12602495,2644.8,2644.5,0.03625394]
[1724379537336,2.4107,2644.7,2644.5,0.03625394]
[1724379538382,1.12602495,2644.6,2644.5,0.03625394]
[1724379538582,3.58702495,2644.6,2644.5,0.03625394]
[1724379540437,2.461,2644.6,2644.5,0.03625394]
[1724379543008,2.461,2644.6,2644.5,3.81768394]
[1724379543217,2.461,2644.6,2644.5,4.36768394]
[1724379546020,2.461,2644.6,2644.5,0.58625394]
[1724379546986,2.461,2644.6,2644.5,0.03625394]
[1724379551626,3.58702495,2644.6,2644.5,0.03625394]
[1724379556730,2.461,2644.6,2644.5,0.03625394]
[1724379562460,3.58702495,2644.6,2644.5,0.03625394]
[1724379569381,3.94572745,2644.6,2644.5,0.03625394]
[1724379575278,6.94572745,2644.6,2644.5,0.03625394]
[1724379585327,10.72701745,2644.6,2644.5,0.03625394]
[1724379588322,14.50830745,2644.6,2644.5,0.03625394]
[1724379592119,14.50830745,2644.6,2643.6,7.36]
[1724379592120,3.78187,2644.2,2643.6,7.36]
[1724379592318,3.45132495,2643.7,2643.0,2.4075]
[1724379592530,1.12602495,2643.4,2643.0,2.4075]
[1724379596215,3.46932495,2643.4,2642.8,9.94993]
[1724379596537,3.46932495,2643.4,2642.9,0.994993]
[1724379596744,3.46932495,2643.4,2642.9,4.778693]
[1724379598711,1.12602495,2643.2,2642.7,3.7839]
[1724379599034,2.4909,2643.1,2642.7,3.7839]
[1724379602094,2.4909,2643.1,2642.6,6.07526]
[1724379603446,2.4909,2643.1,2642.7,3.78399]
[1724379603694,3.78258,2643.7,2642.7,4.769915]
[1724379603695,2.373,2643.6,2642.7,4.769915]
[1724379603843,1.12602495,2643.4,2642.7,3.78399]
[1724379604044,1.12602495,2643.2,2642.7,3.78399]
[1724379604376,2.373,2643.3,2642.7,3.78399]
[1724379607590,2.373,2643.3,2642.8,3.78386]
[1724379608181,2.373,2643.3,2642.7,3.78399]
[1724379608343,2.373,2643.3,2642.7,4.21177338]
[1724379609700,2.373,2643.3,2642.9,3.78365]
[1724379609987,1.12602495,2643.4,2643.0,0.0337186]
[1724379610486,3.42072495,2643.5,2643.0,0.0337186]
[1724379611364,5.3267,2643.7,2643.1,3.78342]
[1724379611689,3.45272495,2643.7,2643.1,3.78342]
[1724379611894,3.45272495,2643.7,2643.2,0.0337186]
[1724379612895,3.45272495,2643.7,2643.0,0.61446486]
[1724379613097,3.45272495,2643.7,2643.3,0.0337186]
[1724379613296,3.45272495,2643.7,2643.0,0.61446486]
[1724379613742,3.45272495,2643.7,2643.1,0.0337186]
[1724379614395,1.12602495,2643.5,2643.1,0.0337186]
[1724379614564,2.3485,2643.4,2643.1,0.0337186]
[1724379618748,1.12602495,2643.5,2643.1,0.0337186]
[1724379619284,5.2531,2643.8,2643.2,6.22498]
[1724379619506,2.2531,2643.8,2643.4,3.78293]
[1724379619917,2.2531,2643.8,2643.5,0.0337186]
[1724379620301,2.2531,2643.8,2643.3,3.78313]
[1724379620640,2.2531,2643.8,2643.2,6.22508]
[1724379620938,1.12602495,2643.7,2643.4,0.03362786]
[1724379621286,1.12602495,2643.7,2643.5,0.03362786]
[1724379621837,1.12602495,2643.7,2643.6,0.03362786]
[1724379623682,1.12602495,2643.7,2643.2,3.78325]
[1724379624131,2.2531,2643.8,2643.3,3.81673786]
[1724379624335,1.12602495,2643.8,2643.3,6.23353786]
[1724379624542,1.12602495,2643.8,2643.4,1.00167879]
[1724379624888,1.12602495,2643.8,2643.5,0.03333476]
[1724379626540,2.4281,2643.7,2643.6,0.03333476]
[1724379626843,2.4281,2643.7,2643.2,3.78322]
[1724379627067,2.4281,2643.7,2643.6,0.03333476]
[1724379627338,2.4281,2643.7,2643.2,3.78322]
[1724379627546,2.4281,2643.7,2643.6,0.03333476]
[1724379627751,2.4281,2643.7,2643.2,3.78322]
[1724379628042,2.4281,2643.7,2643.6,0.03333476]
[1724379628496,2.4281,2643.7,2643.2,3.78322]
[1724379628948,2.4281,2643.7,2643.3,0.03333476]
[1724379629310,2.4281,2643.7,2643.4,0.03333476]
[1724379629798,2.4281,2643.7,2643.5,0.03333476]
[1724379630340,2.4281,2643.7,2643.3,3.78313]
[1724379630895,2.4281,2643.7,2643.4,0.03333476]
[1724379633432,2.4281,2643.7,2643.2,4.69864194]
[1724379633644,2.4281,2643.7,2643.5,0.03333476]
[1724379633939,3.55412495,2643.7,2643.6,0.03333476]
[1724379634242,3.55412495,2643.7,2643.3,0.77056523]
[1724379634444,3.55412495,2643.7,2643.6,0.03333476]
[1724379634750,3.55412495,2643.7,2643.3,0.77056523]
[1724379634946,3.55412495,2643.7,2643.6,0.03333476]
[1724379635112,3.55412495,2643.7,2643.3,0.77056523]
[1724379635735,3.55412495,2643.7,2643.4,0.03333476]
[1724379637013,3.55412495,2643.7,2643.2,4.69862194]
[1724379637367,3.55412495,2643.7,2643.5,0.03336266]
[1724379637506,3.55412495,2643.7,2643.2,3.78318]
[1724379638209,3.55412495,2643.7,2643.3,0.03336266]
[1724379638762,3.55412495,2643.7,2643.2,3.78318]
[1724379638911,3.55412495,2643.7,2643.4,0.03336266]
[1724379639107,3.55412495,2643.7,2643.5,0.03336266]
[1724379639508,3.55412495,2643.7,2643.2,3.78318]
[1724379639765,3.55412495,2643.7,2643.6,0.03336266]
[1724379640063,3.90953745,2643.7,2643.6,0.03336266]
[1724379640361,3.90953745,2643.7,2643.2,3.78318]
[1724379640512,3.55412495,2643.7,2643.2,3.78318]
[1724379640908,3.55412495,2643.7,2643.3,0.03336266]
[1724379641309,3.55412495,2643.7,2643.2,3.78318]
[1724379641953,3.55412495,2643.7,2643.3,0.03336266]
[1724379642315,3.55412495,2643.7,2643.2,3.78318]
[1724379642506,3.55412495,2643.7,2643.4,0.03336266]
[1724379642739,3.55412495,2643.7,2643.2,5.275844]
[1724379643260,3.55412495,2643.7,2643.3,0.03336266]
[1724379643729,3.55412495,2643.7,2643.2,5.275844]
[1724379643916,3.55412495,2643.7,2643.4,0.03336266]
[1724379644117,3.55412495,2643.7,2643.2,3.78318]
[1724379644349,3.55412495,2643.7,2643.5,0.03336266]
[1724379644554,3.55412495,2643.7,2643.2,3.78318]
[1724379644851,3.55412495,2643.7,2643.6,0.03336266]
[1724379645056,3.55412495,2643.7,2643.2,3.78318]
[1724379645226,1.12602495,2643.7,2643.6,0.03336266]
[1724379645429,2.3086,2643.6,2643.2,3.78318]
[1724379646014,2.3086,2643.6,2643.0,7.36]
[1724379646015,1.12602495,2643.5,2643.0,7.36]
[1724379646228,1.12602495,2643.3,2643.0,7.36]
[1724379646444,2.3592,2643.2,2643.0,7.36]
[1724379648716,2.33858875,2643.2,2643.0,7.36]
[1724379648912,2.33858875,2643.2,2643.0,8.852742]
[1724379650544,2.33858875,2643.2,2643.0,1.492742]
[1724379652335,2.33858875,2643.2,2642.9,3.78364]
[1724379658519,2.33858875,2643.2,2643.0,3.78357]
[1724379659228,2.33858875,2643.2,2642.9,7.56727]
[1724379659434,2.33858875,2643.2,2643.1,3.81706485]
[1724379659594,2.33858875,2643.2,2643.1,3.78343]
[1724379659792,2.33858875,2643.2,2643.1,3.81706485]
[1724379660281,2.3225,2643.6,2643.1,4.19877134]
[1724379660493,2.3225,2643.6,2643.2,3.7832]
[1724379661131,2.3225,2643.6,2643.3,0.03363485]
[1724379661330,2.3225,2643.6,2643.2,3.7832]
[1724379661567,3.44852495,2643.6,2643.3,0.03363485]
[1724379661838,3.44852495,2643.6,2643.2,3.7832]
[1724379662060,3.44852495,2643.6,2643.4,0.03363485]
[1724379662271,3.44852495,2643.6,2643.2,4.57803765]
[1724379662479,3.44852495,2643.6,2643.5,0.03363485]
[1724379662877,3.44852495,2643.6,2643.2,3.7832]
[1724379663333,3.44852495,2643.6,2643.3,0.03363485]
[1724379663533,3.44852495,2643.6,2643.2,3.7832]
[1724379663734,3.44852495,2643.6,2643.3,0.03363485]
[1724379664135,3.44852495,2643.6,2643.2,4.57804265]
[1724379664434,3.44852495,2643.6,2643.3,0.03363485]
[1724379664859,3.44852495,2643.6,2643.2,0.79484265]
[1724379665059,3.44852495,2643.6,2643.4,0.03363485]
[1724379665258,3.44852495,2643.6,2643.2,0.79484265]
[1724379665718,3.44852495,2643.6,2643.3,0.52963276]
[1724379667456,2.3225,2643.6,2643.3,4.31276276]
[1724379667658,2.3233,2644.1,2643.8,3.78243]
[1724379667859,2.3233,2644.1,2643.8,3.78234]
[1724379668102,2.3233,2644.1,2643.9,0.03335567]
[1724379668427,3.44932495,2644.0,2643.9,0.03335567]
[1724379668632,7.23146495,2644.0,2643.9,0.03335567]
[1724379668811,2.4419,2643.9,2642.8,11.14377]
[1724379669010,2.4419,2643.4,2642.9,0.03324402]
[1724379669533,2.4419,2643.0,2642.9,0.03324402]
[1724379671426,2.4419,2643.0,2642.7,3.784]
[1724379671624,2.4419,2643.0,2642.8,0.03324402]
[1724379671937,2.4419,2643.0,2642.4,11.14435]
[1724379672231,1.12602495,2642.7,2642.4,7.36]
[1724379672534,2.3007,2642.5,2642.4,7.36]
[1724379674289,2.346,2642.7,2642.4,7.36]
[1724379674483,2.346,2642.7,2642.4,12.29204502]
[1724379677316,2.346,2642.7,2642.4,4.93204502]
[1724379677860,2.346,2642.7,2642.5,3.78425]
[1724379678215,2.346,2642.7,2642.6,0.03374665]
[1724379678655,2.346,2642.7,2642.6,3.81789665]
[1724379678860,2.3399,2643.5,2642.9,3.78364]
[1724379679157,2.3399,2643.3,2642.8,3.78376]
[1724379679566,2.3399,2643.3,2642.9,0.03374665]
[1724379680146,2.3399,2643.3,2642.7,4.334]
[1724379680327,2.3399,2643.3,2643.0,0.03374665]
[1724379680631,2.3399,2643.3,2643.1,0.03374665]
[1724379681071,2.3399,2643.3,2642.7,0.55]
[1724379681259,2.3399,2643.3,2643.2,0.03374665]
[1724379681558,2.3399,2643.3,2642.7,4.33392]
[1724379681764,2.3399,2643.3,2643.2,0.03374665]
[1724379681921,2.3399,2643.3,2642.7,4.33392]
[1724379682120,2.3399,2643.3,2643.2,0.03374665]
[1724379682373,2.3399,2643.3,2642.7,4.33392]
[1724379682543,2.3399,2643.3,2643.2,0.03374665]
[1724379682946,2.3399,2643.3,2642.8,3.78382]
[1724379683145,2.3399,2643.3,2642.9,0.03374665]
[1724379683898,2.3399,2643.3,2642.9,0.58374665]
[1724379684036,2.3399,2643.3,2643.0,3.78349]
[1724379684238,2.3399,2643.3,2643.1,0.38172367]
[1724379684530,2.3399,2643.3,2643.2,0.03374665]
[1724379685563,2.3399,2643.3,2643.0,3.78349]
[1724379685871,2.3399,2643.3,2643.1,0.03374665]
[1724379686374,3.46592495,2643.3,2643.1,0.03374665]
[1724379686573,3.46592495,2643.3,2642.8,3.78379]
[1724379686574,2.3298,2643.2,2642.8,3.78379]
[1724379686777,2.3298,2643.0,2642.9,0.03374665]
[1724379687092,2.3298,2643.0,2642.4,3.78437]
[1724379687310,1.12602495,2642.9,2642.4,1.492903]
[1724379687601,2.3298,2642.4,2641.8,11.14519]
[1724379687748,2.3298,2642.4,2641.9,3.78512]
[1724379688554,2.3298,2642.4,2642.0,3.785]
[1724379688754,2.3298,2642.4,2642.1,0.3785]
[1724379688986,2.3298,2642.4,2642.2,3.78463]
[1724379691764,2.3298,2642.4,2642.1,0.3785]
[1724379695074,2.3298,2642.4,2642.1,4.16335]
[1724379696966,2.3298,2642.4,2642.1,3.78485]
[1724379697389,2.3298,2642.4,2641.8,12.27122495]
[1724379697580,2.3298,2642.4,2642.0,3.78499]
[1724379700801,2.3298,2642.4,2642.0,7.56992]
[1724379700974,2.3298,2642.4,2642.1,3.78485]
[1724379701167,2.3298,2642.4,2642.1,4.596828]
[1724379706894,2.3298,2642.4,2642.1,3.78485]
[1724379707429,3.38932495,2642.2,2641.8,7.36]
[1724379707741,2.2633,2642.2,2642.0,3.78494]
[1724379707885,2.2633,2642.2,2642.1,3.78486]
[1724379708092,2.2633,2642.2,2642.1,4.54184]
[1724379708291,2.2633,2642.2,2642.1,3.78486]
[1724379709225,2.2633,2642.4,2642.1,3.78486]
[1724379714427,2.3031,2642.7,2642.1,3.78486]
[1724379714731,2.3031,2642.7,2642.3,3.78458]
[1724379714937,2.3031,2642.7,2642.3,4.541524]
[1724379715439,2.3031,2642.7,2642.3,0.756944]
[1724379716139,2.3031,2642.7,2642.2,3.78469]
[1724379722702,2.3031,2642.7,2642.3,3.78456]
[1724379724907,2.3031,2642.7,2642.2,3.78472]
[1724379733574,2.3031,2642.7,2642.3,3.78455]